Workbook

Sheet 11.1
B9: Future exposure | E9: Future exposure
B10: Scenario 1 | C10: 70 | E10: Scenario 1 | F10: 55
B11: Scenario 2 | C11: 50 | E11: Scenario 2 | F11: 50
B12: Scenario 3 | C12: 30 | E12: Scenario 3 | F12: -30
B13: Scenario 4 | C13: -10 | E13: Scenario 4 | F13: -10
B14: Scenario 5 | C14: -30 | E14: Scenario 5 | F14: -30
B15: EFV | C15: =SUM(C10:C14)/5 -> 22 | E15: Scenario 6 | F15: 25
B16: PFE | C16: =SMALL(C10:C14,90%*5) -> 50 | E16: Scenario 7 | F16: -35
B17: EPE | C17: =SUMIF(C10:C14,">0")/5 -> 30 | E17: Scenario 8 | F17: -30
B18: ENE | C18: =SUMIF(C10:C14,"<0")/5 -> -8 | E18: Scenario 9 | F18: -20
E19: Scenario 10 | F19: 5
E20: EFV | F20: =AVERAGE(F10:F19) -> -2
E21: PFE | F21: =SMALL(F10:F19,90%*10) -> 50
E22: EPE | F22: =SUMIF(F10:F19,">0")/10 -> 13.5
E23: ENE | F23: =SUMIF(F10:F19,"<0")/10 -> -15.5

Sheet 11.2
B9: Parameters | G9: Probability
B10: Mu (mean) | C10: 5 | F10: =Mu-Sigma*4 -> -35 | G10: =NORMDIST(F10,Mu,Sigma,FALSE) -> 1.338302258e-05 | H10: =EPE -> 6.977965574 | I10: =ENE -> -1.977965574 | J10: 0 | K10: =Mu -> 5 | L10: =PFEhigh -> 28.26347874 | M10: =PFElow -> -18.26347874
B11: Standard deviation (sigma) | C11: 10 | F11: =F10+Sigma/10 -> -34 | G11: 1.986554714e-05 | H11: =H10 -> 6.977965574 | I11: =I10 -> -1.977965574 | J11: =MAX(G10:G95) -> 0.03989422804 | K11: =K10 -> 5 | L11: =L10 -> 28.26347874 | M11: =M10 -> -18.26347874
B12: Alpha (confidence level) | C12: 0.99 | F12: -33 | G12: 2.919469258e-05
F13: -32 | G13: 4.247802706e-05
B14: Calculations | F14: -31 | G14: 6.119019301e-05
B15: Expected positive exposure (EPE) | C15: =Mu*NORMSDIST(Mu/Sigma)+Sigma*NORMDIST(Mu/Sigma,0,1,FALSE) -> 6.977965574 | F15: -30 | G15: 8.72682695e-05
B16: Expected negative exposure (ENE) | C16: =Mu*NORMSDIST(-Mu/Sigma)-Sigma*NORMDIST(-Mu/Sigma,0,1,FALSE) -> -1.977965574 | F16: -29 | G16: 0.0001232219168
B17: ="PFE "&TEXT(Alpha,"0%") -> PFE 99% | C17: =Mu+NORMSINV(Alpha)*Sigma -> 28.26347874 | F17: -28 | G17: 0.0001722568939
B18: ="PFE "&TEXT(1-Alpha,"0%") -> PFE 1% | C18: =Mu-NORMSINV(Alpha)*Sigma -> -18.26347874 | F18: -27 | G18: 0.0002384088201
F19: -26 | G19: 0.0003266819056
F20: -25 | G20: 0.0004431848412
F21: -24 | G21: 0.000595253242
F22: -23 | G22: 0.0007915451583
F23: -22 | G23: 0.001042093481
F24: -21 | G24: 0.001358296923
F25: -20 | G25: 0.001752830049
F26: -19 | G26: 0.002239453029
F27: -18 | G27: 0.002832703774
F28: -17 | G28: 0.003547459285
F29: -16 | G29: 0.004398359598
F30: -15 | G30: 0.005399096651
F31: -14 | G31: 0.006561581477
F32: -13 | G32: 0.00789501583
F33: -12 | G33: 0.009404907738
F34: -11 | G34: 0.01109208347
F35: -10 | G35: 0.01295175957
F36: -9 | G36: 0.01497274656
F37: -8 | G37: 0.0171368592
F38: -7 | G38: 0.0194186055
F39: -6 | G39: 0.0217852177
F40: -5 | G40: 0.02419707245
F41: -4 | G41: 0.02660852499
F42: -3 | G42: =NORMDIST(F42,Mu,Sigma,FALSE) -> 0.02896915528
F43: =F42+Sigma/10 -> -2 | G43: 0.03122539334
F44: -1 | G44: 0.03332246029
F45: 0 | G45: 0.03520653268
F46: 1 | G46: 0.03682701403
F47: 2 | G47: 0.03813878155
F48: 3 | G48: 0.0391042694
F49: 4 | G49: 0.03969525475
F50: 5 | G50: 0.03989422804
F51: 6 | G51: 0.03969525475
F52: 7 | G52: 0.0391042694
F53: 8 | G53: 0.03813878155
F54: 9 | G54: 0.03682701403
F55: 10 | G55: 0.03520653268
F56: 11 | G56: 0.03332246029
F57: 12 | G57: 0.03122539334
F58: 13 | G58: 0.02896915528
F59: 14 | G59: 0.02660852499
F60: 15 | G60: 0.02419707245
F61: 16 | G61: 0.0217852177
F62: 17 | G62: 0.0194186055
F63: 18 | G63: 0.0171368592
F64: 19 | G64: 0.01497274656
F65: 20 | G65: 0.01295175957
F66: 21 | G66: 0.01109208347
F67: 22 | G67: 0.009404907738
F68: 23 | G68: 0.00789501583
F69: 24 | G69: 0.006561581477
F70: 25 | G70: 0.005399096651
F71: 26 | G71: 0.004398359598
F72: 27 | G72: 0.003547459285
F73: 28 | G73: 0.002832703774
F74: 29 | G74: =NORMDIST(F74,Mu,Sigma,FALSE) -> 0.002239453029
F75: =F74+Sigma/10 -> 30 | G75: 0.001752830049
F76: 31 | G76: 0.001358296923
F77: 32 | G77: 0.001042093481
F78: 33 | G78: 0.0007915451583
F79: 34 | G79: 0.000595253242
F80: 35 | G80: 0.0004431848412
F81: 36 | G81: 0.0003266819056
F82: 37 | G82: 0.0002384088201
F83: 38 | G83: 0.0001722568939
F84: 39 | G84: 0.0001232219168
F85: 40 | G85: 8.72682695e-05
F86: 41 | G86: 6.119019301e-05
F87: 42 | G87: 4.247802706e-05
F88: 43 | G88: 2.919469258e-05
F89: 44 | G89: 1.986554714e-05
F90: 45 | G90: 1.338302258e-05
F91: 46 | G91: 8.926165718e-06
F92: 47 | G92: 5.894306776e-06
F93: 48 | G93: 3.853519674e-06
F94: 49 | G94: 2.494247129e-06
F95: 50 | G95: 1.598374111e-06

Sheet 11.3
B9: Parameters
B10: IR Vol 1 | C10: 0.01
B11: IR Vol 2 | C11: 0.01
B12: FX Vol | C12: 0.1
B13: Correlation | C13: 0.2
C15: IRS1 | D15: IRS2 | E15: FX Forward | F15: XCCY Swap
B16: 0 | C16: =SQRT(0.5/PI())*SQRT(B16)*(10-B16)*IRVol -> 0 | D16: =SQRT(0.5/PI())*SQRT(B16)*(10-B16)*IRVol2 -> 0 | E16: =SQRT(0.5/PI())*FXVol*SQRT(B16) -> 0 | F16: =SQRT(0.5/PI())*SQRT(B16*(10-B16)^2*IRVol^2+B16*(10-B16)^2*IRVol2^2+FXVol^2*B16+2*IRFXCorr*B16*(10-B16)*IRVol*FXVol+2*IRFXCorr*B16*(10-B16)*IRVol2*FXVol+2*IRFXCorr*B16*(10-B16)^2*IRVol*IRVol2) -> 0
B17: 0.05 | C17: 0.008876017478 | D17: 0.008876017478 | E17: 0.008920620581 | F17: 0.01822092165
B18: 0.1 | C18: 0.01248950598 | D18: 0.01248950598 | E18: 0.01261566261 | F18: 0.02568221722
B19: 0.2 | C19: =SQRT(0.5/PI())*SQRT(B19)*(10-B19)*IRVol -> 0.01748441634 | D19: =SQRT(0.5/PI())*SQRT(B19)*(10-B19)*IRVol2 -> 0.01748441634 | E19: =SQRT(0.5/PI())*FXVol*SQRT(B19) -> 0.01784124116 | F19: 0.03607708958
B20: 0.3 | C20: =SQRT(0.5/PI())*SQRT(B20)*(10-B20)*IRVol -> 0.02119543955 | D20: =SQRT(0.5/PI())*SQRT(B20)*(10-B20)*IRVol2 -> 0.02119543955 | E20: =SQRT(0.5/PI())*FXVol*SQRT(B20) -> 0.02185096861 | F20: 0.04388814778
B21: 0.4 | C21: 0.02422207221 | D21: 0.02422207221 | E21: 0.02523132522 | F21: 0.05033532393
B22: =B21+0.2 -> 0.6 | C22: 0.02904781999 | D22: 0.02904781999 | E22: 0.03090193616 | F22: 0.06081199547
B23: 0.8 | C23: 0.03282788374 | D23: 0.03282788374 | E23: 0.03568248232 | F23: 0.06925858597
B24: 1 | C24: 0.03590480524 | D24: 0.03590480524 | E24: 0.03989422804 | F24: 0.07636384691
B25: 1.2 | C25: 0.03845770476 | D25: 0.03845770476 | E25: 0.04370193722 | F25: 0.08248629225
B26: 1.4 | C26: 0.04059499899 | D26: 0.04059499899 | E26: 0.04720348719 | F26: 0.08784212587
B27: 1.6 | C27: 0.04238862637 | D27: 0.04238862637 | E27: 0.05046265044 | F27: 0.09257441648
B28: 1.8 | C28: 0.04388945326 | D28: 0.04388945326 | E28: 0.05352372348 | F28: 0.09678415367
B29: 2 | C29: 0.04513516668 | D29: 0.04513516668 | E29: 0.05641895835 | F29: 0.1005461187
B30: 2.2 | C30: 0.04615470813 | D30: 0.04615470813 | E30: 0.05917270273 | F30: 0.1039177791
B31: 2.4 | C31: 0.04697094297 | D31: 0.04697094297 | E31: 0.06180387232 | F31: 0.106944632
B32: 2.6 | C32: 0.04760235727 | D32: 0.04760235727 | E32: 0.06432750983 | F32: 0.1096635947
B33: 2.8 | C33: 0.04806418448 | D33: 0.04806418448 | E33: 0.06675581178 | F33: 0.1121052511
B34: 3 | C34: 0.04836918093 | D34: 0.04836918093 | E34: 0.06909882989 | F34: 0.1142953968
B35: 3.2 | C35: 0.04852817596 | D35: 0.04852817596 | E35: 0.07136496465 | F35: 0.116256134
B36: 3.4 | C36: 0.04855047239 | D36: 0.04855047239 | E36: 0.0735613218 | F36: 0.118006668
B37: 3.6 | C37: 0.04844414442 | D37: 0.04844414442 | E37: 0.07569397566 | F37: 0.1195639
B38: 3.8 | C38: 0.0482162637 | D38: 0.0482162637 | E38: 0.07776816725 | F38: 0.1209428775
B39: 4 | C39: 0.04787307365 | D39: 0.04787307365 | E39: 0.07978845608 | F39: 0.1221571425
B40: =B39+0.2 -> 4.2 | C40: 0.04742012611 | D40: 0.04742012611 | E40: 0.08175883811 | F40: 0.123219005
B41: 4.4 | C41: 0.04686238968 | D41: 0.04686238968 | E41: 0.08368283872 | F41: 0.1241397611
B42: 4.6 | C42: 0.04620433686 | D42: 0.04620433686 | E42: 0.08556358678 | F42: 0.1249298691
B43: 4.8 | C43: 0.04545001471 | D43: 0.04545001471 | E43: 0.08740387445 | F43: 0.1255990939
B44: 5 | C44: 0.0446031029 | D44: 0.0446031029 | E44: 0.08920620581 | F44: 0.1261566261
B45: 5.2 | C45: 0.04366696168 | D45: 0.04366696168 | E45: 0.09097283683 | F45: 0.1266111822
B46: 5.4 | C46: 0.0426446719 | D46: 0.0426446719 | E46: 0.09270580849 | F46: 0.1269710883
B47: 5.6 | C47: 0.04153906873 | D47: 0.04153906873 | E47: 0.09440697439 | F47: 0.1272443524
B48: 5.8 | C48: =SQRT(0.5/PI())*SQRT(B48)*(10-B48)*IRVol -> 0.04035277009 | D48: =SQRT(0.5/PI())*SQRT(B48)*(10-B48)*IRVol2 -> 0.04035277009 | E48: =SQRT(0.5/PI())*FXVol*SQRT(B48) -> 0.09607802402 | F48: =SQRT(0.5/PI())*SQRT(B48*(10-B48)^2*IRVol^2+B48*(10-B48)^2*IRVol2^2+FXVol^2*B48+2*IRFXCorr*B48*(10-B48)*IRVol*FXVol+2*IRFXCorr*B48*(10-B48)*IRVol2*FXVol+2*IRFXCorr*B48*(10-B48)^2*IRVol*IRVol2) -> 0.1274387255
B49: 6 | C49: 0.03908820095 | D49: 0.03908820095 | E49: 0.09772050238 | F49: 0.1275617552
B50: 6.2 | C50: 0.03774761416 | D50: 0.03774761416 | E50: 0.09933582673 | F50: 0.1276208311
B51: 6.4 | C51: 0.03633310832 | D51: 0.03633310832 | E51: 0.1009253009 | F51: 0.1276232255
B52: 6.6 | C52: 0.03484664337 | D52: 0.03484664337 | E52: 0.1024901275 | F52: 0.1275761275
B53: 6.8 | C53: 0.03329005407 | D53: 0.03329005407 | E53: 0.104031419 | F53: 0.1274866733
B54: 7 | C54: 0.03166506184 | D54: 0.03166506184 | E54: 0.1055502061 | F54: 0.1273619716
B55: 7.2 | C55: 0.02997328515 | D55: 0.02997328515 | E55: 0.107047447 | F55: 0.1272091255
B56: 7.4 | C56: 0.02821624864 | D56: 0.02821624864 | E56: 0.1085240332 | F56: 0.1270352499
B57: 7.6 | C57: 0.02639539124 | D57: 0.02639539124 | E57: 0.1099807968 | F57: 0.1268474857
B58: 7.8 | C58: 0.02451207338 | D58: 0.02451207338 | E58: 0.1114185153 | F58: 0.1266530094
B59: 8 | C59: 0.02256758334 | D59: 0.02256758334 | E59: 0.1128379167 | F59: 0.1264590395
B60: 8.2 | C60: 0.02056314307 | D60: 0.02056314307 | E60: 0.1142396837 | F60: 0.1262728385
B61: 8.4 | C61: 0.01849991323 | D61: 0.01849991323 | E61: 0.1156244577 | F61: 0.1261017108
B62: 8.6 | C62: 0.0163789979 | D62: 0.0163789979 | E62: 0.1169928421 | F62: 0.1259529964
B63: 8.8 | C63: 0.01420144865 | D63: 0.01420144865 | E63: 0.1183454055 | F63: 0.1258340602
B64: 9 | C64: 0.01196826841 | D64: 0.01196826841 | E64: 0.1196826841 | F64: 0.1257522769
B65: 9.2 | C65: 0.009680414789 | D65: 0.009680414789 | E65: 0.1210051849 | F65: 0.1257150114
B66: 9.4 | C66: 0.007338803223 | D66: 0.007338803223 | E66: 0.122313387 | F66: 0.1257295949
B67: 9.6 | C67: 0.004944309786 | D67: 0.004944309786 | E67: 0.1236077446 | F67: 0.1258032965
B68: 9.8 | C68: 0.002497773763 | D68: 0.002497773763 | E68: 0.1248886881 | F68: 0.1259432915
B69: 10 | C69: 4.481983712e-17 | D69: 4.481983712e-17 | E69: 0.1261566261 | F69: 0.1261566261

Sheet 11.4
B9: Parameters | E9: Credit curve
B10: Initial spread | C10: 0.02 | E10: 1 | F10: 0.02
B11: Recovery rate | C11: 0.4 | E11: 2 | F11: 0.025
B12: Interest rate | C12: 0.05 | E12: 3 | F12: 0.03
B13: Spread volatility | C13: 0.5 | E13: 4 | F13: 0.035 | J13: =NORMDIST(NORMSINV(99%),0,1,FALSE)/1% -> 2.66521422
B14: Confidence level | C14: 0.99 | E14: 5 | F14: 0.04
C18: Spread | D18: Def Prob | E18: Duration | F18: dSpread | G18: EPE | H18: PFE
B19: 0 | C19: =cubic_spline($E$10:$E$14,$F$10:$F$14,B19,0) -> 0.01499999873 | G19: 0 | H19: 0
B20: 0.05 | C20: =cubic_spline($E$10:$E$14,$F$10:$F$14,B20,0) -> 0.01525000039 | D20: =EXP(-B19*C19/(1-Rec))-EXP(-B20*C20/(1-Rec)) -> 0.001270026199 | E20: =(1-EXP(-(C20/(1-Rec)+IRate)*(5-B20)))/(C20/(1-Rec)+IRate) -> 4.131048941 | F20: =CDSSpread*SpreadVol*SQRT(B20) -> 0.002236067977 | G20: =D20*(1-Rec)+(1-D20)*F20*E20/SQRT(2*PI()) -> 0.0044424875 | H20: =IF(D20>(1-ConfLevel1),(1-Rec),F20*E20*NORMSINV(ConfLevel1)) -> 0.02148918776
B21: 0.1 | C21: =cubic_spline($E$10:$E$14,$F$10:$F$14,B21,0) -> 0.01549999833 | D21: 0.001309972923 | E21: 4.092639147 | F21: =CDSSpread*SpreadVol*SQRT(B21) -> 0.00316227766 | G21: 0.005942355653 | H21: 0.0301077369
B22: 0.25 | C22: =cubic_spline($E$10:$E$14,$F$10:$F$14,B22,0) -> 0.01624999965 | D22: 0.004167963622 | E22: 3.977491818 | F22: 0.005 | G22: 0.01040165805 | H22: 0.04626514817
B23: =B22+0.25 -> 0.5 | C23: =cubic_spline($E$10:$E$14,$F$10:$F$14,B23,0) -> 0.01749999889 | D23: 0.007729547912 | E23: 3.785715501 | F23: 0.007071067812 | G23: 0.0152344888 | H23: 0.06227412495
B24: 0.75 | C24: =cubic_spline($E$10:$E$14,$F$10:$F$14,B24,0) -> 0.01874999826 | D24: 0.008687462271 | E24: 3.593857631 | F24: 0.008660254038 | G24: 0.01752117675 | H24: 0.07240459999
B25: 1 | C25: =cubic_spline($E$10:$E$14,$F$10:$F$14,B25,0) -> 0.01999999955 | D25: 0.009618925871 | E25: 3.401624278 | F25: 0.01 | G25: 0.01921133919 | H25: 0.07913361407
B26: 1.25 | C26: =cubic_spline($E$10:$E$14,$F$10:$F$14,B26,0) -> 0.02124999991 | D26: 0.01052128349 | E26: 3.208716282 | F26: 0.01118033989 | G26: 0.02047406111 | H26: 0.6
B27: 1.5 | C27: =cubic_spline($E$10:$E$14,$F$10:$F$14,B27,0) -> 0.02250000021 | D27: 0.01139203756 | E27: 3.014828046 | F27: 0.01224744871 | G27: 0.0213979374 | H27: 0.6
B28: 1.75 | C28: =cubic_spline($E$10:$E$14,$F$10:$F$14,B28,0) -> 0.02375000039 | D28: 0.01222884287 | E28: 2.819646435 | F28: 0.01322875656 | G28: 0.02203604494 | H28: 0.6
B29: 2 | C29: =cubic_spline($E$10:$E$14,$F$10:$F$14,B29,0) -> 0.02500000037 | D29: 0.01302952379 | E29: 2.622849562 | F29: 0.01414213562 | G29: 0.02242274944 | H29: 0.6
B30: 2.25 | C30: =cubic_spline($E$10:$E$14,$F$10:$F$14,B30,0) -> 0.02625000061 | D30: 0.01379208394 | E30: 2.424105519 | F30: 0.015 | G30: 0.02258135277 | H30: 0.6
B31: 2.5 | C31: =cubic_spline($E$10:$E$14,$F$10:$F$14,B31,0) -> 0.0274999998 | D31: 0.01451470495 | E31: 2.223071052 | F31: 0.0158113883 | G31: 0.02252804396 | H31: 0.6
B32: 2.75 | C32: =cubic_spline($E$10:$E$14,$F$10:$F$14,B32,0) -> 0.02874999948 | D32: 0.01519577628 | E32: 2.019390129 | F32: 0.01658312395 | G32: 0.02227415282 | H32: 0.6
B33: 3 | C33: =cubic_spline($E$10:$E$14,$F$10:$F$14,B33,0) -> 0.02999999933 | D33: 0.015833869 | E33: 1.812692471 | F33: 0.01732050808 | G33: 0.02182748726 | H33: 0.6
B34: 3.25 | C34: =cubic_spline($E$10:$E$14,$F$10:$F$14,B34,0) -> 0.03124999896 | D34: 0.01642776137 | E34: 1.602591943 | F34: 0.01802775638 | G34: 0.02119320828 | H34: 0.6
B35: 3.5 | C35: =cubic_spline($E$10:$E$14,$F$10:$F$14,B35,0) -> 0.03249999969 | D35: 0.0169764444 | E35: 1.388684858 | F35: 0.01870828693 | G35: 0.02037440096 | H35: 0.6
B36: 3.75 | C36: =cubic_spline($E$10:$E$14,$F$10:$F$14,B36,0) -> 0.03374999998 | D36: 0.01747909408 | E36: 1.170548168 | F36: 0.01936491673 | G36: 0.01937244329 | H36: 0.6
B37: 4 | C37: =cubic_spline($E$10:$E$14,$F$10:$F$14,B37,0) -> 0.03500000015 | D37: 0.01793511392 | E37: 0.9477375036 | F37: 0.02 | G37: 0.01818729691 | H37: 0.6
B38: 4.25 | C38: =cubic_spline($E$10:$E$14,$F$10:$F$14,B38,0) -> 0.03625000104 | D38: 0.01834410695 | E38: 0.7197850932 | F38: 0.02061552813 | G38: 0.01681767534 | H38: 0.6
B39: 4.5 | C39: =cubic_spline($E$10:$E$14,$F$10:$F$14,B39,0) -> 0.03749999988 | D39: 0.01870585592 | E39: 0.4861975053 | F39: 0.02121320344 | G39: 0.0152611597 | H39: 0.6
B40: 4.75 | C40: =cubic_spline($E$10:$E$14,$F$10:$F$14,B40,0) -> 0.03874999952 | D40: 0.01902039308 | E40: 0.2464532184 | F40: 0.02179449472 | G40: 0.01351432603 | H40: 0.6
B41: 5 | C41: =cubic_spline($E$10:$E$14,$F$10:$F$14,B41,0) -> 0.03999999911 | D41: 0.01928789369 | E41: 0 | F41: 0.02236067977 | G41: 0.01157273621 | H41: 0.6

Sheet 11.5
C10: Future value | E10: Positive exposure | G10: Negative exposure
C11: Trade 1 | D11: Trade 2 | E11: No netting | F11: Netting | G11: No netting | H11: Netting
B12: Scenario 1 | C12: 50 | D12: 15 | E12: =MAX(C12,0)+MAX(D12,0) -> 65 | F12: =MAX(C12+D12,0) -> 65 | G12: =MIN(C12,0)+MIN(D12,0) -> 0 | H12: =MIN(C12+D12,0) -> 0
B13: Scenario 2 | C13: 30 | D13: 5 | E13: =MAX(C13,0)+MAX(D13,0) -> 35 | F13: =MAX(C13+D13,0) -> 35 | G13: =MIN(C13,0)+MIN(D13,0) -> 0 | H13: =MIN(C13+D13,0) -> 0
B14: Scenario 3 | C14: 10 | D14: -5 | E14: =MAX(C14,0)+MAX(D14,0) -> 10 | F14: 5 | G14: =MIN(C14,0)+MIN(D14,0) -> -5 | H14: 0
B15: Scenario 4 | C15: -10 | D15: -15 | E15: 0 | F15: 0 | G15: =MIN(C15,0)+MIN(D15,0) -> -25 | H15: -25
B16: Scenario 5 | C16: -30 | D16: -25 | E16: 0 | F16: 0 | G16: =MIN(C16,0)+MIN(D16,0) -> -55 | H16: -55
B17: EFV | C17: =AVERAGE(C12:C16) -> 10 | D17: =AVERAGE(D12:D16) -> -5
B18: EPE | C18: =SUMIF(C12:C16,">0")/5 -> 18 | D18: =SUMIF(D12:D16,">0")/5 -> 4 | E18: =SUMIF(E12:E16,">0")/5 -> 22 | F18: =SUMIF(F12:F16,">0")/5 -> 21
B19: ENE | C19: =SUMIF(C12:C16,"<0")/5 -> -8 | D19: =SUMIF(D12:D16,"<0")/5 -> -9 | G19: =SUMIF(G12:G16,"<0")/5 -> -17 | H19: =SUMIF(H12:H16,"<0")/5 -> -16

Sheet 11.6
B10: Portfolio value | C10: -20
B11: Variation margin | C11: -15
B12: Initial margin received | C12: 3 | D12: TRUE
B13: Initial margin posted | C13: 3 | D13: TRUE
B15: Positive exposure | C15: =MAX(PortfolioValue-VariationMargin-InitialMarginReceived+InitialMarginPosted*IF(PostedIMSeg=FALSE,1,0),0) -> 0
B16: Negative exposure | C16: =MIN(PortfolioValue-VariationMargin-InitialMarginReceived*IF(RecIMSeg=FALSE,1,0)+InitialMarginPosted,0) -> -2
B17: Funding | C17: =PortfolioValue-VariationMargin+InitialMarginPosted-InitialMarginReceived*IF(RecIMSeg=FALSE,1,0) -> -2
